[Event "Titled Tuesday Blitz April 12 Early 2022"]
[White "Le Ruyet, Leopold"]
[Black "Onslow, Alfie"]
[WhiteFideId "645923"]
[BlackFideId "436976"]
[WhiteElo "2276"]
[BlackElo "1884"]
[Result "1-0"]
[Round "05"]
[TimeControl "180+1"]
[Date "2022.04.13"]
[WhiteClock "0:00:17"]
[BlackClock "0:01:00"]

1. e4 {[%clk 0:02:54]}  c5 {[%clk 0:02:58]} 2. c3 {[%clk 0:02:53]}  Nf6 {[%clk 0:02:57]} 3. e5 {[%clk 0:02:53]}  Nd5 {[%clk 0:02:58]} 4. Nf3 {[%clk 0:02:53]}  Nc6 {[%clk 0:02:56]} 5. Bc4 {[%clk 0:02:53]}  Nb6 {[%clk 0:02:56]} 6. Bb3 {[%clk 0:02:53]}  c4 {[%clk 0:02:57]} 7. Bc2 {[%clk 0:02:53]}  d5 {[%clk 0:02:57]} 8. d4 {[%clk 0:02:26]}  Bg4 {[%clk 0:02:48]} 9. h3 {[%clk 0:02:21]}  Bh5 {[%clk 0:02:44]} 10. g4 {[%clk 0:02:02]}  Bg6 {[%clk 0:02:43]} 11. e6 {[%clk 0:02:02]}  fxe6 {[%clk 0:02:40]} 12. Bxg6+ {[%clk 0:02:02]}  hxg6 {[%clk 0:02:40]} 13. Qc2 {[%clk 0:02:01]}  Qd6 {[%clk 0:02:33]} 14. Qxg6+ {[%clk 0:02:01]}  Kd7 {[%clk 0:02:33]} 15. Qg5 {[%clk 0:01:45]}  g6 {[%clk 0:01:59]} 16. Qxg6 {[%clk 0:01:07]}  e5 {[%clk 0:01:59]} 17. Nxe5+ {[%clk 0:00:49]}  Nxe5 {[%clk 0:01:59]} 18. Qf5+ {[%clk 0:00:47]}  e6 {[%clk 0:01:42]} 19. Qxe5 {[%clk 0:00:46]}  Rh7 {[%clk 0:01:34]} 20. Bf4 {[%clk 0:00:41]}  Qxe5+ {[%clk 0:01:30]} 21. Bxe5 {[%clk 0:00:41]}  Be7 {[%clk 0:01:30]} 22. Nd2 {[%clk 0:00:39]}  Rf8 {[%clk 0:01:25]} 23. Ke2 {[%clk 0:00:28]}  Rhf7 {[%clk 0:01:20]} 24. Raf1 {[%clk 0:00:24]}  Na4 {[%clk 0:01:09]} 25. f4 {[%clk 0:00:19]}  Nxb2 {[%clk 0:01:08]} 26. Rb1 {[%clk 0:00:19]}  Nd3 {[%clk 0:01:07]} 27. Rxb7+ {[%clk 0:00:18]}  Kc6 {[%clk 0:01:07]} 28. Rc7+ {[%clk 0:00:17]}  Kb6 {[%clk 0:01:04]} 29. Rb1+ {[%clk 0:00:17]}  Ka6 {[%clk 0:01:04]} 30. Rc6+ {[%clk 0:00:16]}  Ka5 {[%clk 0:01:02]} 31. Bc7+ {[%clk 0:00:17]}  Ka4 {[%clk 0:01:00]} 32. Ra6# {[%clk 0:00:17]} 1-0


[Site "https://www.chess.com"]

[Event "Titled Tuesday Blitz April 12 Early 2022"]
[White "Maksimenko, Viktor"]
[Black "Avazkhonov, Alikhon"]
[WhiteFideId "13710478"]
[BlackFideId "14208504"]
[WhiteElo "2269"]
[BlackElo "1739"]
[Result "1-0"]
[Round "05"]
[TimeControl "180+1"]
[Date "2022.04.13"]
[WhiteClock "0:01:13"]
[BlackClock "0:00:02"]

1. d4 {[%clk 0:02:22]}  d5 {[%clk 0:02:57]} 2. c4 {[%clk 0:02:20]}  e6 {[%clk 0:02:57]} 3. Nf3 {[%clk 0:02:21]}  c6 {[%clk 0:02:58]} 4. g3 {[%clk 0:02:20]}  dxc4 {[%clk 0:02:56]} 5. Bg2 {[%clk 0:02:21]}  Nf6 {[%clk 0:02:55]} 6. O-O {[%clk 0:02:21]}  Bd6 {[%clk 0:02:50]} 7. a4 {[%clk 0:02:19]}  O-O {[%clk 0:02:51]} 8. Nfd2 {[%clk 0:02:18]}  c5 {[%clk 0:02:45]} 9. Nxc4 {[%clk 0:02:17]}  Be7 {[%clk 0:02:33]} 10. dxc5 {[%clk 0:02:16]}  Bxc5 {[%clk 0:02:33]} 11. Nc3 {[%clk 0:02:15]}  Nc6 {[%clk 0:02:31]} 12. Bf4 {[%clk 0:02:14]}  Bd7 {[%clk 0:02:12]} 13. Nb5 {[%clk 0:02:12]}  a6 {[%clk 0:01:50]} 14. Nbd6 {[%clk 0:02:10]}  b6 {[%clk 0:00:27]} 15. Rc1 {[%clk 0:02:05]}  Qe7 {[%clk 0:00:26]} 16. Qd2 {[%clk 0:02:00]}  e5 {[%clk 0:00:17]} 17. Bg5 {[%clk 0:01:59]}  h6 {[%clk 0:00:16]} 18. Bxf6 {[%clk 0:01:59]}  Qxf6 {[%clk 0:00:14]} 19. Ne4 {[%clk 0:01:59]}  Qe7 {[%clk 0:00:14]} 20. Nxc5 {[%clk 0:02:00]}  bxc5 {[%clk 0:00:15]} 21. Rfd1 {[%clk 0:01:58]}  Rfd8 {[%clk 0:00:15]} 22. Qc3 {[%clk 0:01:56]}  Nd4 {[%clk 0:00:14]} 23. Rd2 {[%clk 0:01:56]}  Rab8 {[%clk 0:00:13]} 24. Rcd1 {[%clk 0:01:53]}  Bxa4 {[%clk 0:00:11]} 25. Ra1 {[%clk 0:01:52]}  Bb5 {[%clk 0:00:08]} 26. e3 {[%clk 0:01:51]}  Nc6 {[%clk 0:00:06]} 27. Rxd8+ {[%clk 0:01:49]}  Rxd8 {[%clk 0:00:07]} 28. Bf1 {[%clk 0:01:45]}  f6 {[%clk 0:00:05]} 29. h4 {[%clk 0:01:38]}  Qe6 {[%clk 0:00:05]} 30. Be2 {[%clk 0:01:29]}  Qd5 {[%clk 0:00:05]} 31. Rd1 {[%clk 0:01:28]}  Qe6 {[%clk 0:00:03]} 32. Rxd8+ {[%clk 0:01:27]}  Nxd8 {[%clk 0:00:04]} 33. b3 {[%clk 0:01:23]}  Nc6 {[%clk 0:00:04]} 34. Qa1 {[%clk 0:01:23]}  Qd5 {[%clk 0:00:03]} 35. Qa3 {[%clk 0:01:22]}  e4 {[%clk 0:00:03]} 36. Qa1 {[%clk 0:01:19]}  Kh7 {[%clk 0:00:03]} 37. h5 {[%clk 0:01:18]}  Ne5 {[%clk 0:00:03]} 38. Qc3 {[%clk 0:01:13]}  Nxc4 {[%clk 0:00:02]} 39. bxc4 {[%clk 0:01:13]}  Qe5 {[%clk 0:00:02]} 40. Qxe5 {[%clk 0:01:13]} 1-0


[Site "https://www.chess.com"]

[Event "Titled Tuesday Blitz April 12 Early 2022"]
[White "Manelyuk, Daniil"]
[Black "Butti, Enrique"]
[WhiteFideId "44173920"]
[BlackFideId "3700470"]
[WhiteElo "2209"]
[BlackElo "2080"]
[Result "1-0"]
[Round "05"]
[TimeControl "180+1"]
[Date "2022.04.13"]
[WhiteClock "0:02:03"]
[BlackClock "0:01:52"]

1. e4 {[%clk 0:02:52]}  c5 {[%clk 0:02:59]} 2. Nf3 {[%clk 0:02:50]}  d6 {[%clk 0:02:57]} 3. d4 {[%clk 0:02:49]}  cxd4 {[%clk 0:02:57]} 4. Nxd4 {[%clk 0:02:49]}  Nf6 {[%clk 0:02:56]} 5. Nc3 {[%clk 0:02:47]}  a6 {[%clk 0:02:56]} 6. f3 {[%clk 0:02:47]}  Nc6 {[%clk 0:02:54]} 7. Be3 {[%clk 0:02:46]}  Nxd4 {[%clk 0:02:54]} 8. Bxd4 {[%clk 0:02:45]}  e5 {[%clk 0:02:53]} 9. Be3 {[%clk 0:02:43]}  Be6 {[%clk 0:02:50]} 10. Qd2 {[%clk 0:02:41]}  Rc8 {[%clk 0:02:47]} 11. g4 {[%clk 0:02:39]}  h6 {[%clk 0:02:44]} 12. O-O-O {[%clk 0:02:38]}  Qa5 {[%clk 0:02:42]} 13. Kb1 {[%clk 0:02:13]}  Rxc3 {[%clk 0:02:29]} 14. Qxc3 {[%clk 0:02:11]}  Qxa2+ {[%clk 0:02:25]} 15. Kc1 {[%clk 0:02:10]}  d5 {[%clk 0:02:23]} 16. Qxe5 {[%clk 0:02:09]}  dxe4 {[%clk 0:01:52]} 17. Qb8+ {[%clk 0:02:03]} 1-0


[Site "https://www.chess.com"]

[Event "Titled Tuesday Blitz April 12 Early 2022"]
[White "Martic, Ivan"]
[Black "Adelman, Charles"]
[WhiteFideId "929301"]
[BlackFideId "2003597"]
[WhiteElo "2317"]
[BlackElo "2336"]
[Result "1-0"]
[Round "05"]
[TimeControl "180+1"]
[Date "2022.04.13"]
[WhiteClock "0:01:24"]
[BlackClock "0:00:15"]

1. e4 {[%clk 0:03:00]}  e5 {[%clk 0:02:59]} 2. Nf3 {[%clk 0:03:00]}  d6 {[%clk 0:03:00]} 3. Bc4 {[%clk 0:02:59]}  Be7 {[%clk 0:02:59]} 4. d3 {[%clk 0:02:59]}  Nf6 {[%clk 0:02:59]} 5. c3 {[%clk 0:02:58]}  O-O {[%clk 0:03:00]} 6. Bb3 {[%clk 0:02:58]}  c6 {[%clk 0:03:00]} 7. Nbd2 {[%clk 0:02:58]}  b5 {[%clk 0:03:00]} 8. a4 {[%clk 0:02:57]}  bxa4 {[%clk 0:02:55]} 9. Bxa4 {[%clk 0:02:54]}  Bb7 {[%clk 0:02:55]} 10. O-O {[%clk 0:02:54]}  Na6 {[%clk 0:02:54]} 11. Re1 {[%clk 0:02:53]}  Nc5 {[%clk 0:02:54]} 12. Bc2 {[%clk 0:02:51]}  Ne6 {[%clk 0:02:53]} 13. Nc4 {[%clk 0:02:45]}  Qc7 {[%clk 0:02:53]} 14. Ne3 {[%clk 0:02:38]}  g6 {[%clk 0:02:50]} 15. d4 {[%clk 0:02:37]}  Nd7 {[%clk 0:02:43]} 16. dxe5 {[%clk 0:02:22]}  dxe5 {[%clk 0:02:39]} 17. Nc4 {[%clk 0:02:15]}  Kg7 {[%clk 0:02:28]} 18. Be3 {[%clk 0:02:05]}  f6 {[%clk 0:02:23]} 19. Qd2 {[%clk 0:02:00]}  Rfd8 {[%clk 0:02:23]} 20. Bh6+ {[%clk 0:01:59]}  Kg8 {[%clk 0:02:21]} 21. Qc1 {[%clk 0:01:53]}  Ndc5 {[%clk 0:02:18]} 22. Na5 {[%clk 0:01:52]}  Nd3 {[%clk 0:02:12]} 23. Bxd3 {[%clk 0:01:50]}  Rxd3 {[%clk 0:02:12]} 24. Qc2 {[%clk 0:01:51]}  Rad8 {[%clk 0:01:42]} 25. Qb3 {[%clk 0:01:49]}  Bc8 {[%clk 0:01:42]} 26. Qc4 {[%clk 0:01:45]}  c5 {[%clk 0:01:18]} 27. Nd4 {[%clk 0:01:36]}  cxd4 {[%clk 0:01:10]} 28. Qxd3 {[%clk 0:01:36]}  dxc3 {[%clk 0:01:07]} 29. Qxc3 {[%clk 0:01:37]}  Qxc3 {[%clk 0:00:53]} 30. bxc3 {[%clk 0:01:38]}  g5 {[%clk 0:00:48]} 31. Nc6 {[%clk 0:01:37]}  Rd7 {[%clk 0:00:44]} 32. Red1 {[%clk 0:01:36]}  Kf7 {[%clk 0:00:38]} 33. Rxd7 {[%clk 0:01:29]}  Bxd7 {[%clk 0:00:37]} 34. Nxe7 {[%clk 0:01:29]}  Kxe7 {[%clk 0:00:35]} 35. Rxa7 {[%clk 0:01:30]}  Kd6 {[%clk 0:00:18]} 36. h4 {[%clk 0:01:28]}  gxh4 {[%clk 0:00:18]} 37. f3 {[%clk 0:01:25]}  Nc5 {[%clk 0:00:15]} 38. Bf8+ {[%clk 0:01:24]} 1-0


[Site "https://www.chess.com"]

[Event "Titled Tuesday Blitz April 12 Early 2022"]
[White "Matlakov, Maxim"]
[Black "Dubov, Daniil"]
[WhiteFideId "4168003"]
[BlackFideId "24126055"]
[WhiteElo "2669"]
[BlackElo "2791"]
[Result "1/2-1/2"]
[Round "05"]
[TimeControl "180+1"]
[Date "2022.04.12"]
[WhiteClock "0:00:12"]
[BlackClock "0:00:04"]

1. e4 {[%clk 0:03:00]}  c5 {[%clk 0:02:59]} 2. Nf3 {[%clk 0:03:00]}  e6 {[%clk 0:02:58]} 3. c3 {[%clk 0:03:00]}  d5 {[%clk 0:02:54]} 4. e5 {[%clk 0:02:56]}  Nc6 {[%clk 0:02:53]} 5. d4 {[%clk 0:02:56]}  cxd4 {[%clk 0:02:52]} 6. cxd4 {[%clk 0:02:56]}  Nge7 {[%clk 0:02:53]} 7. Na3 {[%clk 0:02:51]}  Nf5 {[%clk 0:02:51]} 8. Nc2 {[%clk 0:02:52]}  Be7 {[%clk 0:02:48]} 9. Bd3 {[%clk 0:02:47]}  O-O {[%clk 0:02:47]} 10. O-O {[%clk 0:02:44]}  Bd7 {[%clk 0:02:47]} 11. Kh1 {[%clk 0:02:40]}  Rc8 {[%clk 0:02:42]} 12. g4 {[%clk 0:02:39]}  Nh4 {[%clk 0:02:32]} 13. Nxh4 {[%clk 0:02:39]}  Bxh4 {[%clk 0:02:33]} 14. f4 {[%clk 0:02:39]}  Be7 {[%clk 0:02:31]} 15. Be3 {[%clk 0:01:33]}  Qb6 {[%clk 0:02:16]} 16. Rb1 {[%clk 0:01:31]}  Nb4 {[%clk 0:02:02]} 17. Nxb4 {[%clk 0:01:30]}  Qxb4 {[%clk 0:02:02]} 18. Qe2 {[%clk 0:01:25]}  a6 {[%clk 0:01:53]} 19. f5 {[%clk 0:01:04]}  f6 {[%clk 0:01:46]} 20. fxe6 {[%clk 0:01:00]}  Bxe6 {[%clk 0:01:45]} 21. a3 {[%clk 0:00:50]}  Qb6 {[%clk 0:01:42]} 22. Bf5 {[%clk 0:00:48]}  g6 {[%clk 0:00:55]} 23. Bxe6+ {[%clk 0:00:47]}  Qxe6 {[%clk 0:00:55]} 24. Bh6 {[%clk 0:00:47]}  Rf7 {[%clk 0:00:52]} 25. Rbe1 {[%clk 0:00:46]}  fxe5 {[%clk 0:00:41]} 26. Qxe5 {[%clk 0:00:36]}  Qxe5 {[%clk 0:00:29]} 27. dxe5 {[%clk 0:00:37]}  Rxf1+ {[%clk 0:00:14]} 28. Rxf1 {[%clk 0:00:38]}  g5 {[%clk 0:00:10]} 29. Rf5 {[%clk 0:00:29]}  Rc1+ {[%clk 0:00:08]} 30. Kg2 {[%clk 0:00:29]}  Rc2+ {[%clk 0:00:09]} 31. Kh1 {[%clk 0:00:20]}  Rc1+ {[%clk 0:00:09]} 32. Kg2 {[%clk 0:00:20]}  Rc2+ {[%clk 0:00:09]} 33. Kh1 {[%clk 0:00:21]}  Rxb2 {[%clk 0:00:09]} 34. e6 {[%clk 0:00:17]}  Re2 {[%clk 0:00:07]} 35. Bxg5 {[%clk 0:00:16]}  Rxe6 {[%clk 0:00:06]} 36. Bxe7 {[%clk 0:00:16]}  Rxe7 {[%clk 0:00:06]} 37. Rxd5 {[%clk 0:00:17]}  Kf7 {[%clk 0:00:03]} 38. Rd6 {[%clk 0:00:16]}  Re6 {[%clk 0:00:02]} 39. Rd7+ {[%clk 0:00:15]}  Re7 {[%clk 0:00:03]} 40. Rd6 {[%clk 0:00:14]}  Re6 {[%clk 0:00:03]} 41. Rd7+ {[%clk 0:00:14]}  Re7 {[%clk 0:00:04]} 42. Rd6 {[%clk 0:00:12]} 1/2-1/2


[Site "https://www.chess.com"]

[Event "Titled Tuesday Blitz April 12 Early 2022"]
[White "Mikhailov, Viacheslav"]
[Black "Migot, Tangi"]
[WhiteFideId "4187369"]
[BlackFideId "662445"]
[WhiteElo "2381"]
[BlackElo "2533"]
[Result "1-0"]
[Round "05"]
[TimeControl "180+1"]
[Date "2022.04.13"]
[WhiteClock "0:00:47"]
[BlackClock "0:00:04"]

1. Nf3 {[%clk 0:02:58]}  c5 {[%clk 0:03:00]} 2. g3 {[%clk 0:02:58]}  b6 {[%clk 0:03:00]} 3. Bg2 {[%clk 0:02:59]}  Bb7 {[%clk 0:03:01]} 4. O-O {[%clk 0:02:59]}  Nf6 {[%clk 0:03:01]} 5. c3 {[%clk 0:02:56]}  e6 {[%clk 0:02:59]} 6. d4 {[%clk 0:02:55]}  d6 {[%clk 0:02:59]} 7. a4 {[%clk 0:02:55]}  a6 {[%clk 0:02:57]} 8. Na3 {[%clk 0:02:52]}  Nbd7 {[%clk 0:02:56]} 9. Nc4 {[%clk 0:02:51]}  cxd4 {[%clk 0:02:49]} 10. cxd4 {[%clk 0:02:48]}  Rc8 {[%clk 0:02:44]} 11. b3 {[%clk 0:02:48]}  Be7 {[%clk 0:02:34]} 12. Ba3 {[%clk 0:02:47]}  Ne4 {[%clk 0:02:12]} 13. Rc1 {[%clk 0:02:33]}  O-O {[%clk 0:02:05]} 14. Nfd2 {[%clk 0:02:23]}  Ndf6 {[%clk 0:02:03]} 15. Nxe4 {[%clk 0:02:13]}  Bxe4 {[%clk 0:01:57]} 16. Bxe4 {[%clk 0:02:12]}  Nxe4 {[%clk 0:01:57]} 17. Qd3 {[%clk 0:02:12]}  Nf6 {[%clk 0:01:36]} 18. Ne3 {[%clk 0:01:30]}  a5 {[%clk 0:01:19]} 19. d5 {[%clk 0:01:28]}  Qd7 {[%clk 0:01:09]} 20. Rfd1 {[%clk 0:01:20]}  Rxc1 {[%clk 0:00:35]} 21. Rxc1 {[%clk 0:01:21]}  Rb8 {[%clk 0:00:35]} 22. Rc6 {[%clk 0:01:17]}  Bf8 {[%clk 0:00:18]} 23. Qb5 {[%clk 0:01:13]}  exd5 {[%clk 0:00:15]} 24. Nxd5 {[%clk 0:01:10]}  Nxd5 {[%clk 0:00:14]} 25. Qxd5 {[%clk 0:01:11]}  Qb7 {[%clk 0:00:08]} 26. e4 {[%clk 0:01:04]}  b5 {[%clk 0:00:07]} 27. Bxd6 {[%clk 0:01:00]}  Rd8 {[%clk 0:00:05]} 28. axb5 {[%clk 0:00:54]}  h5 {[%clk 0:00:03]} 29. h4 {[%clk 0:00:49]}  Bxd6 {[%clk 0:00:02]} 30. Rxd6 {[%clk 0:00:49]}  Qxd5 {[%clk 0:00:03]} 31. Rxd5 {[%clk 0:00:49]}  Re8 {[%clk 0:00:03]} 32. b6 {[%clk 0:00:49]}  Rb8 {[%clk 0:00:03]} 33. Rb5 {[%clk 0:00:47]}  Rxb6 {[%clk 0:00:04]} 34. Rxb6 {[%clk 0:00:47]} 1-0


[Site "https://www.chess.com"]

[Event "Titled Tuesday Blitz April 12 Early 2022"]
[White "Mikhalsky, Vladimir"]
[Black "Wesolowska, Hanna"]
[WhiteFideId "14144352"]
[BlackFideId "1104683"]
[WhiteElo "2301"]
[BlackElo "2302"]
[Result "1-0"]
[Round "05"]
[TimeControl "180+1"]
[Date "2022.04.13"]
[WhiteClock "0:00:46"]
[BlackClock "0:00:22"]

1. e4 {[%clk 0:02:57]}  c5 {[%clk 0:02:55]} 2. Nf3 {[%clk 0:02:57]}  d6 {[%clk 0:02:55]} 3. Bb5+ {[%clk 0:02:55]}  Bd7 {[%clk 0:02:54]} 4. Bxd7+ {[%clk 0:02:54]}  Qxd7 {[%clk 0:02:54]} 5. c4 {[%clk 0:02:53]}  g6 {[%clk 0:02:54]} 6. d4 {[%clk 0:02:53]}  cxd4 {[%clk 0:02:53]} 7. Nxd4 {[%clk 0:02:53]}  Bg7 {[%clk 0:02:53]} 8. Nc3 {[%clk 0:02:53]}  Nf6 {[%clk 0:02:51]} 9. f3 {[%clk 0:02:52]}  O-O {[%clk 0:02:50]} 10. O-O {[%clk 0:02:52]}  Nc6 {[%clk 0:02:50]} 11. Be3 {[%clk 0:02:52]}  Rac8 {[%clk 0:02:49]} 12. b3 {[%clk 0:02:51]}  a6 {[%clk 0:02:50]} 13. Na4 {[%clk 0:02:45]}  Qd8 {[%clk 0:02:39]} 14. Rc1 {[%clk 0:02:35]}  Nxd4 {[%clk 0:02:36]} 15. Bxd4 {[%clk 0:02:34]}  b5 {[%clk 0:02:36]} 16. Nb6 {[%clk 0:02:30]}  Rc6 {[%clk 0:02:30]} 17. Nd5 {[%clk 0:02:27]}  Nxd5 {[%clk 0:02:29]} 18. Bxg7 {[%clk 0:02:19]}  Ne3 {[%clk 0:02:13]} 19. Qd4 {[%clk 0:02:18]}  Nxf1 {[%clk 0:02:11]} 20. Bxf8 {[%clk 0:02:01]}  Qxf8 {[%clk 0:02:09]} 21. Kxf1 {[%clk 0:01:58]}  Qc8 {[%clk 0:02:09]} 22. Ke2 {[%clk 0:01:47]}  bxc4 {[%clk 0:02:05]} 23. bxc4 {[%clk 0:01:46]}  Rc5 {[%clk 0:02:05]} 24. Rc2 {[%clk 0:01:38]}  Qc7 {[%clk 0:02:02]} 25. Kd3 {[%clk 0:01:37]}  Qa5 {[%clk 0:02:01]} 26. Qc3 {[%clk 0:01:35]}  Qc7 {[%clk 0:01:56]} 27. Rb2 {[%clk 0:01:29]}  e5 {[%clk 0:01:54]} 28. Rb4 {[%clk 0:01:24]}  Qe7 {[%clk 0:01:53]} 29. Ke2 {[%clk 0:01:17]}  Qh4 {[%clk 0:01:50]} 30. h3 {[%clk 0:01:15]}  Qg3 {[%clk 0:01:46]} 31. Kf1 {[%clk 0:01:15]}  Qh2 {[%clk 0:01:32]} 32. Kf2 {[%clk 0:01:13]}  Qh1 {[%clk 0:01:31]} 33. Qe1 {[%clk 0:01:10]}  Qh2 {[%clk 0:01:25]} 34. Qc1 {[%clk 0:01:09]}  Kg7 {[%clk 0:01:21]} 35. Rb6 {[%clk 0:01:07]}  h5 {[%clk 0:01:09]} 36. Rxd6 {[%clk 0:01:05]}  h4 {[%clk 0:01:07]} 37. Rd5 {[%clk 0:01:05]}  Qg3+ {[%clk 0:01:07]} 38. Kf1 {[%clk 0:01:04]}  Rc6 {[%clk 0:01:04]} 39. c5 {[%clk 0:01:03]}  Qh2 {[%clk 0:01:01]} 40. Qe1 {[%clk 0:00:59]}  Qf4 {[%clk 0:00:59]} 41. Qc3 {[%clk 0:00:56]}  f6 {[%clk 0:00:55]} 42. Rd6 {[%clk 0:00:54]}  Rc7 {[%clk 0:00:52]} 43. c6 {[%clk 0:00:54]}  Kh6 {[%clk 0:00:52]} 44. Rd7 {[%clk 0:00:54]}  Rc8 {[%clk 0:00:42]} 45. c7 {[%clk 0:00:53]}  Qh2 {[%clk 0:00:30]} 46. Rd8 {[%clk 0:00:48]}  Qh1+ {[%clk 0:00:29]} 47. Kf2 {[%clk 0:00:48]}  Rxc7 {[%clk 0:00:22]} 48. Qxc7 {[%clk 0:00:46]} 1-0


[Site "https://www.chess.com"]

[Event "Titled Tuesday Blitz April 12 Early 2022"]
[White "Nugumanov, Bakhtiyar"]
[Black "Przybylski, Wojciech"]
[WhiteFideId "13701797"]
[BlackFideId "1117599"]
[WhiteElo "2262"]
[BlackElo "2133"]
[Result "1-0"]
[Round "05"]
[TimeControl "180+1"]
[Date "2022.04.13"]
[WhiteClock "0:00:11"]
[BlackClock "0:00:06"]

1. Nf3 {[%clk 0:02:57]}  Nf6 {[%clk 0:02:58]} 2. c4 {[%clk 0:02:56]}  c6 {[%clk 0:02:58]} 3. g3 {[%clk 0:02:55]}  d5 {[%clk 0:02:57]} 4. Bg2 {[%clk 0:02:56]}  Bg4 {[%clk 0:02:56]} 5. Ne5 {[%clk 0:02:43]}  Bf5 {[%clk 0:02:55]} 6. cxd5 {[%clk 0:02:39]}  cxd5 {[%clk 0:02:51]} 7. Nc3 {[%clk 0:02:39]}  e6 {[%clk 0:02:48]} 8. g4 {[%clk 0:02:36]}  Bg6 {[%clk 0:02:45]} 9. h4 {[%clk 0:02:35]}  h5 {[%clk 0:02:12]} 10. Nxg6 {[%clk 0:02:24]}  fxg6 {[%clk 0:02:13]} 11. Qc2 {[%clk 0:02:15]}  Kf7 {[%clk 0:02:11]} 12. g5 {[%clk 0:02:10]}  Nfd7 {[%clk 0:02:10]} 13. Nxd5 {[%clk 0:01:56]}  Nc6 {[%clk 0:01:55]} 14. Nf4 {[%clk 0:01:45]}  Nde5 {[%clk 0:01:54]} 15. Qb3 {[%clk 0:01:19]}  Nd4 {[%clk 0:01:51]} 16. Qxb7+ {[%clk 0:01:19]}  Be7 {[%clk 0:01:41]} 17. O-O {[%clk 0:01:03]}  Rb8 {[%clk 0:01:33]} 18. Qe4 {[%clk 0:01:02]}  Qd6 {[%clk 0:01:23]} 19. e3 {[%clk 0:00:40]}  Nf5 {[%clk 0:01:20]} 20. d4 {[%clk 0:00:40]}  Ng4 {[%clk 0:00:56]} 21. d5 {[%clk 0:00:20]}  e5 {[%clk 0:00:46]} 22. Nd3 {[%clk 0:00:19]}  Rhe8 {[%clk 0:00:26]} 23. f3 {[%clk 0:00:19]}  Ng3 {[%clk 0:00:23]} 24. fxg4+ {[%clk 0:00:20]}  Kg8 {[%clk 0:00:21]} 25. Qf3 {[%clk 0:00:15]}  Nxf1 {[%clk 0:00:18]} 26. Bxf1 {[%clk 0:00:16]}  e4 {[%clk 0:00:17]} 27. Qxe4 {[%clk 0:00:12]}  Bxg5 {[%clk 0:00:15]} 28. Qf3 {[%clk 0:00:12]}  Rf8 {[%clk 0:00:12]} 29. Qg2 {[%clk 0:00:09]}  Bxh4 {[%clk 0:00:11]} 30. Bd2 {[%clk 0:00:08]}  Rbe8 {[%clk 0:00:07]} 31. e4 {[%clk 0:00:07]}  Qc6 {[%clk 0:00:06]} 32. dxc6 {[%clk 0:00:07]}  Rd8 {[%clk 0:00:06]} 33. Ne5 {[%clk 0:00:06]}  Rde8 {[%clk 0:00:06]} 34. Nxg6 {[%clk 0:00:06]}  Rf2 {[%clk 0:00:04]} 35. Nxh4 {[%clk 0:00:07]}  Rxg2+ {[%clk 0:00:04]} 36. Bxg2 {[%clk 0:00:08]}  Rxe4 {[%clk 0:00:04]} 37. Bxe4 {[%clk 0:00:08]}  g5 {[%clk 0:00:05]} 38. c7 {[%clk 0:00:09]}  Kg7 {[%clk 0:00:05]} 39. c8=Q {[%clk 0:00:09]}  gxh4 {[%clk 0:00:05]} 40. Qc7+ {[%clk 0:00:10]}  Kf6 {[%clk 0:00:06]} 41. Bc3+ {[%clk 0:00:11]}  Ke6 {[%clk 0:00:06]} 42. Qc6+ {[%clk 0:00:10]}  Kf7 {[%clk 0:00:06]} 43. Bd5+ {[%clk 0:00:10]}  Ke7 {[%clk 0:00:06]} 44. Qe6+ {[%clk 0:00:10]}  Kd8 {[%clk 0:00:06]} 45. Bf6+ {[%clk 0:00:10]}  Kc7 {[%clk 0:00:06]} 46. Qc6+ {[%clk 0:00:11]}  Kb8 {[%clk 0:00:06]} 47. Qb7# {[%clk 0:00:11]} 1-0


[Site "https://www.chess.com"]

[Event "Titled Tuesday Blitz April 12 Early 2022"]
[White "Obolenskikh, Dmitry"]
[Black "Dronavalli, Harika"]
[WhiteFideId "4156013"]
[BlackFideId "5015197"]
[WhiteElo "2512"]
[BlackElo "2382"]
[Result "1-0"]
[Round "05"]
[TimeControl "180+1"]
[Date "2022.04.13"]
[WhiteClock "0:00:39"]
[BlackClock "0:00:29"]

1. Nf3 {[%clk 0:03:00]}  Nf6 {[%clk 0:02:57]} 2. c4 {[%clk 0:02:59]}  g6 {[%clk 0:02:55]} 3. Nc3 {[%clk 0:02:58]}  Bg7 {[%clk 0:02:55]} 4. e4 {[%clk 0:02:58]}  O-O {[%clk 0:02:55]} 5. d4 {[%clk 0:02:58]}  d6 {[%clk 0:02:55]} 6. Be2 {[%clk 0:02:59]}  c5 {[%clk 0:02:56]} 7. O-O {[%clk 0:02:58]}  cxd4 {[%clk 0:02:56]} 8. Nxd4 {[%clk 0:02:58]}  Nc6 {[%clk 0:02:57]} 9. Be3 {[%clk 0:02:58]}  Bd7 {[%clk 0:02:57]} 10. Nc2 {[%clk 0:02:58]}  Rc8 {[%clk 0:02:47]} 11. f3 {[%clk 0:02:58]}  a6 {[%clk 0:02:47]} 12. Qd2 {[%clk 0:02:52]}  Ne5 {[%clk 0:02:44]} 13. Na3 {[%clk 0:02:52]}  Re8 {[%clk 0:02:38]} 14. Rac1 {[%clk 0:02:51]}  h5 {[%clk 0:02:37]} 15. b3 {[%clk 0:02:50]}  Qa5 {[%clk 0:02:30]} 16. Rfd1 {[%clk 0:02:50]}  Qxa3 {[%clk 0:02:29]} 17. Nb1 {[%clk 0:02:50]}  Qxc1 {[%clk 0:02:05]} 18. Rxc1 {[%clk 0:02:49]}  h4 {[%clk 0:02:01]} 19. Nc3 {[%clk 0:02:48]}  h3 {[%clk 0:02:01]} 20. g4 {[%clk 0:02:44]}  b5 {[%clk 0:01:58]} 21. cxb5 {[%clk 0:02:39]}  axb5 {[%clk 0:01:57]} 22. Kf2 {[%clk 0:02:37]}  b4 {[%clk 0:01:55]} 23. Nd5 {[%clk 0:02:30]}  Nexg4+ {[%clk 0:01:55]} 24. Kg3 {[%clk 0:02:13]}  Nxd5 {[%clk 0:01:54]} 25. fxg4 {[%clk 0:01:54]}  Nc3 {[%clk 0:01:44]} 26. Bf3 {[%clk 0:01:53]}  Bc6 {[%clk 0:01:28]} 27. Kxh3 {[%clk 0:01:51]}  Bxe4 {[%clk 0:01:29]} 28. Bxe4 {[%clk 0:01:50]}  Nxe4 {[%clk 0:01:29]} 29. Qxb4 {[%clk 0:01:49]}  Nf2+ {[%clk 0:01:29]} 30. Kg3 {[%clk 0:01:38]}  Nd3 {[%clk 0:01:15]} 31. Rxc8 {[%clk 0:01:37]}  Rxc8 {[%clk 0:01:14]} 32. Qe4 {[%clk 0:01:32]}  Be5+ {[%clk 0:01:09]} 33. Kg2 {[%clk 0:01:13]}  Rc2+ {[%clk 0:01:08]} 34. Kf1 {[%clk 0:01:13]}  Rc3 {[%clk 0:01:03]} 35. Bd2 {[%clk 0:01:11]}  Rc2 {[%clk 0:00:54]} 36. Qxd3 {[%clk 0:01:10]}  Rxa2 {[%clk 0:00:54]} 37. h4 {[%clk 0:01:10]}  Rb2 {[%clk 0:00:53]} 38. h5 {[%clk 0:01:08]}  Kg7 {[%clk 0:00:51]} 39. Bc3 {[%clk 0:01:05]}  Ra2 {[%clk 0:00:45]} 40. Bxe5+ {[%clk 0:01:04]}  dxe5 {[%clk 0:00:46]} 41. Qd5 {[%clk 0:00:59]}  Ra1+ {[%clk 0:00:38]} 42. Ke2 {[%clk 0:00:58]}  Ra2+ {[%clk 0:00:38]} 43. Kd3 {[%clk 0:00:56]}  Kf6 {[%clk 0:00:36]} 44. h6 {[%clk 0:00:48]}  Rh2 {[%clk 0:00:34]} 45. g5+ {[%clk 0:00:43]}  Kf5 {[%clk 0:00:34]} 46. Qxf7+ {[%clk 0:00:42]}  Kxg5 {[%clk 0:00:34]} 47. h7 {[%clk 0:00:40]}  Rh3+ {[%clk 0:00:29]} 48. Ke4 {[%clk 0:00:39]}  Kg4 {[%clk 0:00:29]} 49. Qe6+ {[%clk 0:00:39]} 1-0


[Site "https://www.chess.com"]